[Event "Titled Tuesday Blitz May 24 Early 2022"]
[White "Turutin, Alexander"]
[Black "Khamdamova, Afruza"]
[WhiteFideId "4180623"]
[BlackFideId "14210444"]
[WhiteElo "2402"]
[BlackElo "1660"]
[Result "1/2-1/2"]
[Round "07"]
[TimeControl "180+1"]
[Date "2022.05.25"]
[WhiteClock "0:00:03"]
[BlackClock "0:00:03"]

1. e4 {[%clk 0:03:00]}  e5 {[%clk 0:02:59]} 2. Nf3 {[%clk 0:03:01]}  Nf6 {[%clk 0:03:00]} 3. d3 {[%clk 0:02:57]}  Nc6 {[%clk 0:02:58]} 4. Bg5 {[%clk 0:02:55]}  h6 {[%clk 0:02:55]} 5. c3 {[%clk 0:02:56]}  hxg5 {[%clk 0:02:54]} 6. Nxg5 {[%clk 0:02:54]}  d6 {[%clk 0:02:51]} 7. Nf3 {[%clk 0:02:53]}  Be6 {[%clk 0:02:50]} 8. Nbd2 {[%clk 0:02:54]}  Qd7 {[%clk 0:02:48]} 9. Qa4 {[%clk 0:02:48]}  a6 {[%clk 0:02:43]} 10. Qc2 {[%clk 0:02:47]}  O-O-O {[%clk 0:02:42]} 11. c4 {[%clk 0:02:40]}  g6 {[%clk 0:02:35]} 12. Qc3 {[%clk 0:02:34]}  Bh6 {[%clk 0:02:30]} 13. Nb1 {[%clk 0:02:23]}  Bg7 {[%clk 0:02:07]} 14. b4 {[%clk 0:02:20]}  Nd4 {[%clk 0:02:07]} 15. a4 {[%clk 0:01:58]}  Bg4 {[%clk 0:02:04]} 16. Nfd2 {[%clk 0:01:56]}  Nh5 {[%clk 0:01:48]} 17. b5 {[%clk 0:01:49]}  Nf4 {[%clk 0:01:36]} 18. f3 {[%clk 0:01:44]}  Be6 {[%clk 0:01:22]} 19. Ra2 {[%clk 0:01:45]}  f5 {[%clk 0:01:18]} 20. Qa5 {[%clk 0:01:36]}  Kb8 {[%clk 0:01:02]} 21. bxa6 {[%clk 0:01:30]}  b6 {[%clk 0:01:02]} 22. Qc3 {[%clk 0:01:28]}  Ka7 {[%clk 0:00:49]} 23. Na3 {[%clk 0:01:25]}  fxe4 {[%clk 0:00:44]} 24. dxe4 {[%clk 0:01:25]}  Bf6 {[%clk 0:00:32]} 25. a5 {[%clk 0:01:16]}  Bh4+ {[%clk 0:00:30]} 26. Kd1 {[%clk 0:01:15]}  Rb8 {[%clk 0:00:26]} 27. Nc2 {[%clk 0:00:57]}  Nxc2 {[%clk 0:00:24]} 28. Kxc2 {[%clk 0:00:58]}  bxa5 {[%clk 0:00:20]} 29. g3 {[%clk 0:00:53]}  Bxg3 {[%clk 0:00:19]} 30. hxg3 {[%clk 0:00:54]}  Rxh1 {[%clk 0:00:19]} 31. gxf4 {[%clk 0:00:55]}  exf4 {[%clk 0:00:19]} 32. Qxa5 {[%clk 0:00:44]}  Rb6 {[%clk 0:00:18]} 33. Bd3 {[%clk 0:00:37]}  Rh2 {[%clk 0:00:18]} 34. Rb2 {[%clk 0:00:31]}  Qc6 {[%clk 0:00:17]} 35. Qc3 {[%clk 0:00:21]}  Rxb2+ {[%clk 0:00:17]} 36. Qxb2 {[%clk 0:00:22]}  Qb6 {[%clk 0:00:17]} 37. Qg7 {[%clk 0:00:17]}  Qa5 {[%clk 0:00:15]} 38. Qc3 {[%clk 0:00:12]}  Qa2+ {[%clk 0:00:15]} 39. Kc1 {[%clk 0:00:11]}  Rh1+ {[%clk 0:00:14]} 40. Bf1 {[%clk 0:00:11]}  Kxa6 {[%clk 0:00:11]} 41. c5+ {[%clk 0:00:11]}  Rxf1+ {[%clk 0:00:10]} 42. Nxf1 {[%clk 0:00:11]}  Bc4 {[%clk 0:00:10]} 43. Nd2 {[%clk 0:00:11]}  Bb5 {[%clk 0:00:09]} 44. cxd6 {[%clk 0:00:11]}  cxd6 {[%clk 0:00:10]} 45. Qf6 {[%clk 0:00:11]}  Qa3+ {[%clk 0:00:09]} 46. Kc2 {[%clk 0:00:11]}  Qa4+ {[%clk 0:00:09]} 47. Kc1 {[%clk 0:00:09]}  Qa3+ {[%clk 0:00:09]} 48. Kd1 {[%clk 0:00:09]}  Qa4+ {[%clk 0:00:08]} 49. Ke1 {[%clk 0:00:09]}  Qb4 {[%clk 0:00:07]} 50. Qxf4 {[%clk 0:00:09]}  Qc5 {[%clk 0:00:06]} 51. Qg5 {[%clk 0:00:04]}  Qc1+ {[%clk 0:00:06]} 52. Kf2 {[%clk 0:00:04]}  Qc5+ {[%clk 0:00:06]} 53. Qxc5 {[%clk 0:00:04]}  dxc5 {[%clk 0:00:06]} 54. Ke3 {[%clk 0:00:03]}  Kb6 {[%clk 0:00:06]} 55. f4 {[%clk 0:00:03]}  Kc6 {[%clk 0:00:07]} 56. Nf3 {[%clk 0:00:02]}  Kd6 {[%clk 0:00:07]} 57. Ne5 {[%clk 0:00:03]}  Be8 {[%clk 0:00:06]} 58. Nc4+ {[%clk 0:00:03]}  Ke6 {[%clk 0:00:06]} 59. Ne5 {[%clk 0:00:04]}  Kf6 {[%clk 0:00:05]} 60. Nf3 {[%clk 0:00:04]}  Bb5 {[%clk 0:00:04]} 61. Ng5 {[%clk 0:00:04]}  c4 {[%clk 0:00:04]} 62. Kd4 {[%clk 0:00:05]}  Ba6 {[%clk 0:00:04]} 63. Nf3 {[%clk 0:00:04]}  Bb5 {[%clk 0:00:03]} 64. Ne5 {[%clk 0:00:04]}  Ba6 {[%clk 0:00:03]} 65. Nxc4 {[%clk 0:00:04]}  Bb7 {[%clk 0:00:03]} 66. e5+ {[%clk 0:00:02]}  Ke7 {[%clk 0:00:03]} 67. Nd6 {[%clk 0:00:03]}  Bc6 {[%clk 0:00:03]} 68. Ne4 {[%clk 0:00:03]}  Bd7 {[%clk 0:00:03]} 69. Nc5 {[%clk 0:00:02]}  Bf5 {[%clk 0:00:03]} 70. Kd5 {[%clk 0:00:03]}  Bg4 {[%clk 0:00:03]} 71. e6 {[%clk 0:00:03]}  Bf3+ {[%clk 0:00:02]} 72. Ke5 {[%clk 0:00:04]}  Bg4 {[%clk 0:00:03]} 73. Kd5 {[%clk 0:00:03]}  Bf3+ {[%clk 0:00:02]} 74. Ke5 {[%clk 0:00:03]}  Bg4 {[%clk 0:00:03]} 75. Kd5 {[%clk 0:00:03]} 1/2-1/2


[Site "https://www.chess.com"]

[Event "Titled Tuesday Blitz May 24 Early 2022"]
[White "Valle Maytin, Luis Enrique"]
[Black "Fernandez Hernandez, Gerardo"]
[WhiteFideId "3503666"]
[BlackFideId "2207400"]
[WhiteElo "2224"]
[BlackElo "2214"]
[Result "0-1"]
[Round "07"]
[TimeControl "180+1"]
[Date "2022.05.25"]
[WhiteClock "0:02:02"]
[BlackClock "0:01:00"]

1. e4 {[%clk 0:02:59]}  e6 {[%clk 0:02:57]} 2. d4 {[%clk 0:02:59]}  d5 {[%clk 0:02:55]} 3. Bd3 {[%clk 0:02:58]}  c5 {[%clk 0:02:54]} 4. exd5 {[%clk 0:02:56]}  exd5 {[%clk 0:02:53]} 5. dxc5 {[%clk 0:02:56]}  Bxc5 {[%clk 0:02:52]} 6. Ne2 {[%clk 0:02:56]}  Nf6 {[%clk 0:02:49]} 7. O-O {[%clk 0:02:56]}  Nc6 {[%clk 0:02:47]} 8. Nd2 {[%clk 0:02:56]}  Bg4 {[%clk 0:02:44]} 9. Nb3 {[%clk 0:02:55]}  Bd6 {[%clk 0:02:34]} 10. c3 {[%clk 0:02:50]}  O-O {[%clk 0:02:33]} 11. Qc2 {[%clk 0:02:50]}  Re8 {[%clk 0:02:24]} 12. Bg5 {[%clk 0:02:48]}  Rc8 {[%clk 0:02:19]} 13. a3 {[%clk 0:02:44]}  h6 {[%clk 0:02:02]} 14. Bh4 {[%clk 0:02:42]}  g5 {[%clk 0:02:00]} 15. Bg3 {[%clk 0:02:41]}  Ne4 {[%clk 0:01:56]} 16. Bxd6 {[%clk 0:02:37]}  Qxd6 {[%clk 0:01:54]} 17. f3 {[%clk 0:02:37]}  Nf6 {[%clk 0:01:10]} 18. fxg4 {[%clk 0:02:34]}  Nxg4 {[%clk 0:01:11]} 19. Bh7+ {[%clk 0:02:26]}  Kg7 {[%clk 0:01:03]} 20. Qf5 {[%clk 0:02:02]}  Qxh2# {[%clk 0:01:00]} 0-1


[Site "https://www.chess.com"]

[Event "Titled Tuesday Blitz May 24 Early 2022"]
[White "Van den Dikkenberg, Erik"]
[Black "Buscar, Michael"]
[WhiteFideId "1005880"]
[BlackFideId "2603616"]
[WhiteElo "2118"]
[BlackElo "2010"]
[Result "0-1"]
[Round "07"]
[TimeControl "180+1"]
[Date "2022.05.25"]
[WhiteClock "0:00:13"]
[BlackClock "0:00:55"]

1. e4 {[%clk 0:03:00]}  c5 {[%clk 0:02:55]} 2. Nc3 {[%clk 0:03:00]}  e6 {[%clk 0:02:55]} 3. f4 {[%clk 0:03:01]}  g5 {[%clk 0:02:54]} 4. Nf3 {[%clk 0:03:02]}  gxf4 {[%clk 0:02:54]} 5. Bc4 {[%clk 0:02:58]}  a6 {[%clk 0:02:48]} 6. a4 {[%clk 0:02:57]}  Qc7 {[%clk 0:02:48]} 7. d3 {[%clk 0:02:56]}  Nc6 {[%clk 0:02:45]} 8. O-O {[%clk 0:02:56]}  Bd6 {[%clk 0:02:39]} 9. Qe1 {[%clk 0:02:49]}  Nge7 {[%clk 0:02:38]} 10. Qh4 {[%clk 0:02:48]}  Ng6 {[%clk 0:02:39]} 11. Qf6 {[%clk 0:02:48]}  Nce5 {[%clk 0:02:31]} 12. Bxf4 {[%clk 0:02:37]}  Nxf3+ {[%clk 0:02:27]} 13. Rxf3 {[%clk 0:02:31]}  Bxf4 {[%clk 0:02:27]} 14. Nd5 {[%clk 0:02:01]}  exd5 {[%clk 0:02:17]} 15. exd5 {[%clk 0:02:00]}  O-O {[%clk 0:02:15]} 16. Re1 {[%clk 0:01:51]}  Qd6 {[%clk 0:02:10]} 17. Rxf4 {[%clk 0:01:19]}  Qxf4 {[%clk 0:02:06]} 18. Qb6 {[%clk 0:01:15]}  d6 {[%clk 0:02:03]} 19. Rf1 {[%clk 0:01:15]}  Qd4+ {[%clk 0:02:03]} 20. Kh1 {[%clk 0:01:15]}  Qe5 {[%clk 0:02:00]} 21. Qc7 {[%clk 0:01:08]}  Qe7 {[%clk 0:01:57]} 22. Qa5 {[%clk 0:01:06]}  Bg4 {[%clk 0:01:55]} 23. h3 {[%clk 0:01:05]}  Bd7 {[%clk 0:01:46]} 24. Qd2 {[%clk 0:01:05]}  b5 {[%clk 0:01:45]} 25. Ba2 {[%clk 0:00:58]}  b4 {[%clk 0:01:33]} 26. Qh6 {[%clk 0:00:57]}  Bxa4 {[%clk 0:01:29]} 27. Rf5 {[%clk 0:00:50]}  Bxc2 {[%clk 0:01:14]} 28. Rh5 {[%clk 0:00:49]}  f6 {[%clk 0:01:13]} 29. Bc4 {[%clk 0:00:34]}  Qe1+ {[%clk 0:01:03]} 30. Kh2 {[%clk 0:00:33]}  Ra7 {[%clk 0:01:04]} 31. Bxa6 {[%clk 0:00:32]}  Rg7 {[%clk 0:01:02]} 32. Bb7 {[%clk 0:00:25]}  Bxd3 {[%clk 0:00:57]} 33. Bc6 {[%clk 0:00:24]}  Ne5 {[%clk 0:00:57]} 34. Rh4 {[%clk 0:00:14]}  Qg3+ {[%clk 0:00:55]} 35. Kh1 {[%clk 0:00:13]}  Qe1+ {[%clk 0:00:54]} 36. Kh2 {[%clk 0:00:12]}  Qg3+ {[%clk 0:00:54]} 37. Kh1 {[%clk 0:00:13]}  Qxg2# {[%clk 0:00:55]} 0-1


[Site "https://www.chess.com"]

[Event "Titled Tuesday Blitz May 24 Early 2022"]
[White "Vasquez Schroeder, Rodrigo"]
[Black "Artemenko, Oleg"]
[WhiteFideId "3400042"]
[BlackFideId "14201798"]
[WhiteElo "2567"]
[BlackElo "2287"]
[Result "1-0"]
[Round "07"]
[TimeControl "180+1"]
[Date "2022.05.24"]
[WhiteClock "0:00:40"]
[BlackClock "0:00:09"]

1. e4 {[%clk 0:03:00]}  e6 {[%clk 0:02:59]} 2. d4 {[%clk 0:03:00]}  d5 {[%clk 0:02:59]} 3. Nc3 {[%clk 0:03:00]}  Nf6 {[%clk 0:02:58]} 4. e5 {[%clk 0:03:01]}  Nfd7 {[%clk 0:02:58]} 5. Nce2 {[%clk 0:03:02]}  c5 {[%clk 0:02:58]} 6. f4 {[%clk 0:03:02]}  Nc6 {[%clk 0:02:59]} 7. c3 {[%clk 0:03:02]}  Qb6 {[%clk 0:02:59]} 8. a3 {[%clk 0:03:02]}  f6 {[%clk 0:02:58]} 9. Nf3 {[%clk 0:03:02]}  cxd4 {[%clk 0:02:56]} 10. cxd4 {[%clk 0:03:01]}  Be7 {[%clk 0:02:56]} 11. Nc3 {[%clk 0:03:00]}  fxe5 {[%clk 0:02:54]} 12. fxe5 {[%clk 0:02:59]}  O-O {[%clk 0:02:54]} 13. Na4 {[%clk 0:02:57]}  Qd8 {[%clk 0:02:50]} 14. Be3 {[%clk 0:02:55]}  Bh4+ {[%clk 0:02:46]} 15. g3 {[%clk 0:02:54]}  Be7 {[%clk 0:02:42]} 16. Be2 {[%clk 0:02:52]}  b5 {[%clk 0:02:36]} 17. Bxb5 {[%clk 0:02:45]}  Qa5+ {[%clk 0:02:32]} 18. Nc3 {[%clk 0:02:45]}  Bb7 {[%clk 0:02:30]} 19. O-O {[%clk 0:02:35]}  Qb6 {[%clk 0:02:29]} 20. Qe2 {[%clk 0:02:23]}  a6 {[%clk 0:02:16]} 21. Bd3 {[%clk 0:02:17]}  Rf7 {[%clk 0:02:16]} 22. Na4 {[%clk 0:02:10]}  Qc7 {[%clk 0:02:04]} 23. b4 {[%clk 0:02:07]}  Raf8 {[%clk 0:02:03]} 24. Rac1 {[%clk 0:02:05]}  Qd8 {[%clk 0:01:35]} 25. Nc5 {[%clk 0:02:02]}  Nxc5 {[%clk 0:01:32]} 26. bxc5 {[%clk 0:02:02]}  Na5 {[%clk 0:01:31]} 27. Rb1 {[%clk 0:02:00]}  Bc6 {[%clk 0:01:27]} 28. Rb6 {[%clk 0:01:58]}  Bb5 {[%clk 0:01:27]} 29. Bxb5 {[%clk 0:01:56]}  axb5 {[%clk 0:01:28]} 30. Rxb5 {[%clk 0:01:51]}  Nc4 {[%clk 0:01:27]} 31. Bc1 {[%clk 0:01:51]}  Qd7 {[%clk 0:01:23]} 32. Rb4 {[%clk 0:01:51]}  g5 {[%clk 0:01:15]} 33. h3 {[%clk 0:01:48]}  h5 {[%clk 0:01:16]} 34. Kg2 {[%clk 0:01:44]}  g4 {[%clk 0:01:15]} 35. hxg4 {[%clk 0:01:44]}  hxg4 {[%clk 0:01:16]} 36. Nh2 {[%clk 0:01:44]}  Rxf1 {[%clk 0:01:11]} 37. Qxg4+ {[%clk 0:01:43]}  Kf7 {[%clk 0:00:58]} 38. Qh5+ {[%clk 0:01:41]}  Kg8 {[%clk 0:00:55]} 39. Qg6+ {[%clk 0:01:35]}  Kh8 {[%clk 0:00:55]} 40. Nxf1 {[%clk 0:01:35]}  Bd8 {[%clk 0:00:49]} 41. Bg5 {[%clk 0:01:29]}  Bxg5 {[%clk 0:00:45]} 42. Qxg5 {[%clk 0:01:29]}  Qf7 {[%clk 0:00:45]} 43. Qf6+ {[%clk 0:01:25]}  Qxf6 {[%clk 0:00:37]} 44. exf6 {[%clk 0:01:26]}  Kg8 {[%clk 0:00:27]} 45. a4 {[%clk 0:01:20]}  Kf7 {[%clk 0:00:26]} 46. Rb3 {[%clk 0:01:15]}  Ra8 {[%clk 0:00:25]} 47. Rf3 {[%clk 0:01:14]}  Rxa4 {[%clk 0:00:23]} 48. Nh2 {[%clk 0:01:14]}  Na5 {[%clk 0:00:21]} 49. Ng4 {[%clk 0:01:13]}  Nc6 {[%clk 0:00:19]} 50. Rf4 {[%clk 0:01:06]}  Nxd4 {[%clk 0:00:15]} 51. Ne5+ {[%clk 0:01:06]}  Kf8 {[%clk 0:00:15]} 52. f7 {[%clk 0:01:06]}  Ra2+ {[%clk 0:00:14]} 53. Kh3 {[%clk 0:01:06]}  Nf5 {[%clk 0:00:14]} 54. g4 {[%clk 0:01:06]}  Ra3+ {[%clk 0:00:14]} 55. Kh2 {[%clk 0:01:07]}  Re3 {[%clk 0:00:11]} 56. Ng6+ {[%clk 0:01:05]}  Kxf7 {[%clk 0:00:12]} 57. gxf5 {[%clk 0:01:06]}  exf5 {[%clk 0:00:13]} 58. Nh4 {[%clk 0:01:06]}  Ke6 {[%clk 0:00:13]} 59. Nxf5 {[%clk 0:01:04]}  Rc3 {[%clk 0:00:13]} 60. Ng7+ {[%clk 0:00:53]}  Ke5 {[%clk 0:00:11]} 61. Rf5+ {[%clk 0:00:52]}  Ke4 {[%clk 0:00:12]} 62. Rg5 {[%clk 0:00:50]}  Rxc5 {[%clk 0:00:12]} 63. Kg3 {[%clk 0:00:50]}  Rc3+ {[%clk 0:00:12]} 64. Kg4 {[%clk 0:00:51]}  d4 {[%clk 0:00:13]} 65. Rg6 {[%clk 0:00:47]}  d3 {[%clk 0:00:12]} 66. Re6+ {[%clk 0:00:47]}  Kd5 {[%clk 0:00:12]} 67. Re8 {[%clk 0:00:46]}  Rc6 {[%clk 0:00:11]} 68. Nf5 {[%clk 0:00:45]}  d2 {[%clk 0:00:10]} 69. Rd8+ {[%clk 0:00:43]}  Ke4 {[%clk 0:00:09]} 70. Rd4+ {[%clk 0:00:43]}  Ke5 {[%clk 0:00:09]} 71. Rxd2 {[%clk 0:00:42]}  Rg6+ {[%clk 0:00:08]} 72. Kh5 {[%clk 0:00:42]}  Rg1 {[%clk 0:00:08]} 73. Nh4 {[%clk 0:00:39]}  Kf6 {[%clk 0:00:08]} 74. Rf2+ {[%clk 0:00:40]}  Ke5 {[%clk 0:00:09]} 75. Nf3+ {[%clk 0:00:40]} 1-0


[Site "https://www.chess.com"]

[Event "Titled Tuesday Blitz May 24 Early 2022"]
[White "Vidit, Santosh Gujrathi"]
[Black "Cherniaiev, Tykhon"]
[WhiteFideId "5029465"]
[BlackFideId "14182360"]
[WhiteElo "2654"]
[BlackElo "2289"]
[Result "1-0"]
[Round "07"]
[TimeControl "180+1"]
[Date "2022.05.24"]
[WhiteClock "0:00:15"]
[BlackClock "0:00:30"]

1. Nf3 {[%clk 0:03:00]}  Nf6 {[%clk 0:02:59]} 2. b3 {[%clk 0:03:00]}  d5 {[%clk 0:02:59]} 3. Bb2 {[%clk 0:03:01]}  e6 {[%clk 0:02:59]} 4. g3 {[%clk 0:03:00]}  Be7 {[%clk 0:03:00]} 5. Bg2 {[%clk 0:03:01]}  O-O {[%clk 0:03:00]} 6. O-O {[%clk 0:03:01]}  c5 {[%clk 0:03:01]} 7. d4 {[%clk 0:02:59]}  Nc6 {[%clk 0:03:01]} 8. dxc5 {[%clk 0:02:57]}  Bxc5 {[%clk 0:03:02]} 9. Nbd2 {[%clk 0:02:57]}  Re8 {[%clk 0:03:02]} 10. c4 {[%clk 0:02:53]}  d4 {[%clk 0:03:01]} 11. a3 {[%clk 0:02:52]}  a5 {[%clk 0:03:01]} 12. Ng5 {[%clk 0:02:42]}  e5 {[%clk 0:02:58]} 13. Qc2 {[%clk 0:02:36]}  h6 {[%clk 0:02:51]} 14. Nge4 {[%clk 0:02:34]}  Nxe4 {[%clk 0:02:50]} 15. Nxe4 {[%clk 0:02:35]}  Bf8 {[%clk 0:02:49]} 16. c5 {[%clk 0:02:33]}  Be6 {[%clk 0:02:47]} 17. Rad1 {[%clk 0:02:25]}  Rc8 {[%clk 0:02:45]} 18. e3 {[%clk 0:02:12]}  b6 {[%clk 0:02:30]} 19. exd4 {[%clk 0:02:06]}  Nxd4 {[%clk 0:02:27]} 20. Bxd4 {[%clk 0:02:05]}  exd4 {[%clk 0:02:28]} 21. c6 {[%clk 0:02:05]}  Bd5 {[%clk 0:02:22]} 22. Rxd4 {[%clk 0:02:03]}  Bxe4 {[%clk 0:02:13]} 23. Rxe4 {[%clk 0:02:02]}  Rxe4 {[%clk 0:02:11]} 24. Qxe4 {[%clk 0:02:03]}  Bxa3 {[%clk 0:02:10]} 25. Bh3 {[%clk 0:01:54]}  Rc7 {[%clk 0:02:04]} 26. Qf3 {[%clk 0:01:46]}  Qf6 {[%clk 0:01:48]} 27. Qxf6 {[%clk 0:01:43]}  gxf6 {[%clk 0:01:49]} 28. Bd7 {[%clk 0:01:40]}  Bc5 {[%clk 0:01:48]} 29. Re1 {[%clk 0:01:37]}  b5 {[%clk 0:01:43]} 30. Re8+ {[%clk 0:01:37]}  Kg7 {[%clk 0:01:43]} 31. Ra8 {[%clk 0:01:33]}  Ba7 {[%clk 0:01:42]} 32. Bc8 {[%clk 0:01:06]}  Rxc6 {[%clk 0:01:28]} 33. Rxa7 {[%clk 0:01:06]}  Rxc8 {[%clk 0:01:28]} 34. Rxa5 {[%clk 0:01:07]}  Rc5 {[%clk 0:01:26]} 35. Kf1 {[%clk 0:01:03]}  f5 {[%clk 0:01:18]} 36. Ke2 {[%clk 0:01:03]}  Rd5 {[%clk 0:01:17]} 37. Ke3 {[%clk 0:01:01]}  f6 {[%clk 0:00:57]} 38. f3 {[%clk 0:00:58]}  Kg6 {[%clk 0:00:55]} 39. b4 {[%clk 0:00:53]}  Kf7 {[%clk 0:00:40]} 40. Ra7+ {[%clk 0:00:51]}  Ke6 {[%clk 0:00:39]} 41. Ra6+ {[%clk 0:00:50]}  Kf7 {[%clk 0:00:39]} 42. Rb6 {[%clk 0:00:50]}  Kg6 {[%clk 0:00:35]} 43. Rc6 {[%clk 0:00:45]}  Kf7 {[%clk 0:00:33]} 44. h4 {[%clk 0:00:32]}  h5 {[%clk 0:00:32]} 45. Rc5 {[%clk 0:00:18]}  Rxc5 {[%clk 0:00:32]} 46. bxc5 {[%clk 0:00:18]}  Ke6 {[%clk 0:00:32]} 47. Kd4 {[%clk 0:00:16]}  Kd7 {[%clk 0:00:33]} 48. Kc3 {[%clk 0:00:06]}  Kc7 {[%clk 0:00:32]} 49. Kb4 {[%clk 0:00:06]}  Kc6 {[%clk 0:00:32]} 50. f4 {[%clk 0:00:07]}  Kc7 {[%clk 0:00:27]} 51. Kxb5 {[%clk 0:00:07]}  Kb7 {[%clk 0:00:28]} 52. c6+ {[%clk 0:00:08]}  Kc7 {[%clk 0:00:28]} 53. Kc5 {[%clk 0:00:08]}  Kc8 {[%clk 0:00:29]} 54. Kd6 {[%clk 0:00:09]}  Kd8 {[%clk 0:00:29]} 55. Ke6 {[%clk 0:00:09]}  Kc7 {[%clk 0:00:30]} 56. Kxf5 {[%clk 0:00:10]}  Kxc6 {[%clk 0:00:31]} 57. Kxf6 {[%clk 0:00:10]}  Kd5 {[%clk 0:00:31]} 58. Kg5 {[%clk 0:00:11]}  Ke4 {[%clk 0:00:32]} 59. Kxh5 {[%clk 0:00:12]}  Kf5 {[%clk 0:00:33]} 60. g4+ {[%clk 0:00:12]}  Kxf4 {[%clk 0:00:33]} 61. g5 {[%clk 0:00:13]}  Kf5 {[%clk 0:00:34]} 62. g6 {[%clk 0:00:13]}  Kf6 {[%clk 0:00:35]} 63. Kh6 {[%clk 0:00:14]}  Ke7 {[%clk 0:00:35]} 64. g7 {[%clk 0:00:15]}  Kf6 {[%clk 0:00:36]} 65. g8=Q {[%clk 0:00:15]}  Ke7 {[%clk 0:00:36]} 66. Qg6 {[%clk 0:00:14]}  Kd7 {[%clk 0:00:27]} 67. Kg5 {[%clk 0:00:12]}  Ke7 {[%clk 0:00:27]} 68. h5 {[%clk 0:00:12]}  Kf8 {[%clk 0:00:27]} 69. h6 {[%clk 0:00:13]}  Ke7 {[%clk 0:00:28]} 70. h7 {[%clk 0:00:13]}  Kf8 {[%clk 0:00:29]} 71. h8=Q+ {[%clk 0:00:13]}  Ke7 {[%clk 0:00:30]} 72. Qhh7+ {[%clk 0:00:14]}  Kf8 {[%clk 0:00:30]} 73. Qgg8# {[%clk 0:00:15]} 1-0


[Site "https://www.chess.com"]

[Event "Titled Tuesday Blitz May 24 Early 2022"]
[White "Vusatiuk, Vladimir"]
[Black "Soumya, Swaminathan"]
[WhiteFideId "14118610"]
[BlackFideId "5016193"]
[WhiteElo "2157"]
[BlackElo "2115"]
[Result "1-0"]
[Round "07"]
[TimeControl "180+1"]
[Date "2022.05.25"]
[WhiteClock "0:00:12"]
[BlackClock "0:00:02"]

1. d4 {[%clk 0:03:00]}  Nf6 {[%clk 0:02:59]} 2. c4 {[%clk 0:03:00]}  g6 {[%clk 0:02:59]} 3. Nc3 {[%clk 0:03:00]}  Bg7 {[%clk 0:02:59]} 4. e4 {[%clk 0:03:01]}  d6 {[%clk 0:02:59]} 5. Nf3 {[%clk 0:03:01]}  O-O {[%clk 0:03:00]} 6. Be2 {[%clk 0:03:02]}  e5 {[%clk 0:02:58]} 7. O-O {[%clk 0:03:02]}  Nc6 {[%clk 0:02:58]} 8. d5 {[%clk 0:02:58]}  Ne7 {[%clk 0:02:58]} 9. Ne1 {[%clk 0:02:59]}  Nd7 {[%clk 0:02:57]} 10. Nd3 {[%clk 0:02:59]}  f5 {[%clk 0:02:56]} 11. f3 {[%clk 0:02:59]}  f4 {[%clk 0:02:56]} 12. b4 {[%clk 0:02:59]}  a5 {[%clk 0:02:41]} 13. bxa5 {[%clk 0:02:54]}  Rxa5 {[%clk 0:02:40]} 14. a4 {[%clk 0:02:49]}  Ra8 {[%clk 0:02:38]} 15. Ba3 {[%clk 0:02:34]}  b6 {[%clk 0:02:34]} 16. Bb4 {[%clk 0:02:33]}  Nc5 {[%clk 0:02:12]} 17. a5 {[%clk 0:02:15]}  Nxd3 {[%clk 0:01:41]} 18. Bxd3 {[%clk 0:02:10]}  c5 {[%clk 0:01:36]} 19. dxc6 {[%clk 0:01:53]}  Nxc6 {[%clk 0:01:36]} 20. Ba3 {[%clk 0:01:42]}  Rxa5 {[%clk 0:01:26]} 21. Nd5 {[%clk 0:01:39]}  Be6 {[%clk 0:01:00]} 22. Bb2 {[%clk 0:01:21]}  g5 {[%clk 0:00:47]} 23. Rxa5 {[%clk 0:01:10]}  bxa5 {[%clk 0:00:48]} 24. Qa4 {[%clk 0:01:09]}  Bxd5 {[%clk 0:00:46]} 25. exd5 {[%clk 0:01:01]}  Qb6+ {[%clk 0:00:46]} 26. Kh1 {[%clk 0:00:59]}  Nb4 {[%clk 0:00:39]} 27. Be4 {[%clk 0:00:56]}  Qc5 {[%clk 0:00:21]} 28. Rc1 {[%clk 0:00:44]}  Rb8 {[%clk 0:00:20]} 29. Qd7 {[%clk 0:00:40]}  Qf2 {[%clk 0:00:09]} 30. Qe6+ {[%clk 0:00:36]}  Kh8 {[%clk 0:00:08]} 31. Qxd6 {[%clk 0:00:29]}  Rf8 {[%clk 0:00:08]} 32. Bxe5 {[%clk 0:00:26]}  Rg8 {[%clk 0:00:06]} 33. Bxg7+ {[%clk 0:00:24]}  Rxg7 {[%clk 0:00:06]} 34. Qf8+ {[%clk 0:00:22]}  Rg8 {[%clk 0:00:06]} 35. Qf6+ {[%clk 0:00:23]}  Rg7 {[%clk 0:00:06]} 36. d6 {[%clk 0:00:22]}  Qd2 {[%clk 0:00:06]} 37. Rg1 {[%clk 0:00:17]}  a4 {[%clk 0:00:05]} 38. c5 {[%clk 0:00:17]}  a3 {[%clk 0:00:05]} 39. c6 {[%clk 0:00:15]}  a2 {[%clk 0:00:03]} 40. c7 {[%clk 0:00:15]}  Qc2 {[%clk 0:00:02]} 41. Bxc2 {[%clk 0:00:12]} 1-0


[Site "https://www.chess.com"]